fUST/lending_fUST_20260428
["ID","MTS","AMOUNT","RATE_DAILY","PERIOD"]
[421290640,1777361433114,-318.25823015,0.00012699,2]
[421290650,1777361443347,-181.74176985,0.00012699,2]
[421290651,1777361443355,-500.0,0.00012699,2]
[421290652,1777361443364,-307.95413993,0.00012699,2]
[421290653,1777361443374,-183.60149887,0.00012699,2]
[421290654,1777361443383,-356.44759135,0.00012699,2]
[421290668,1777361446598,-143.55240865,0.00012699,2]
[421290669,1777361446607,-543.90234081,0.00012699,2]
[421290670,1777361446616,-500.0,0.00012699,2]
[421290671,1777361446625,-554.95907584,0.00012699,2]
[421290672,1777361446634,-554.95907584,0.00012699,2]
[421290673,1777361446643,-554.95907584,0.00012699,2]
[421290674,1777361446652,-554.95907584,0.00012699,2]
[421290675,1777361446661,-554.95907584,0.00012699,2]
[421290676,1777361446671,-554.95907584,0.00012699,2]
[421290677,1777361446680,-554.95907584,0.00012699,2]
[421290678,1777361446690,-554.95907584,0.00012699,2]
[421290679,1777361446700,-554.95907584,0.00012699,2]
[421290680,1777361446709,-554.95907584,0.00012699,2]
[421290681,1777361446719,-554.95907584,0.00012699,2]
[421290682,1777361446728,-554.95907584,0.00012699,2]
[421290683,1777361446737,-554.95907584,0.00012699,2]
[421290684,1777361446746,-589.2891024,0.00012699,2]
[421290685,1777361446755,-589.2891024,0.00012699,2]
[421290686,1777361446765,-589.2891024,0.00012699,2]
[421290687,1777361446774,-589.2891024,0.00012699,2]
[421290688,1777361446783,-589.2891024,0.00012699,2]
[421290689,1777361446792,-1087.23555056,0.000127,2]
[421290690,1777361446803,-5372.47073516,0.000127,2]
[421290693,1777361447943,-4542.2,0.000127,2]
[421290695,1777362351206,-589.0,0.00011999,2]
[421290696,1777362351228,-300.0,0.00011999,2]
[421290697,1777362351249,-5189.0,0.00012,2]
[421290698,1777362389229,-227.99,0.0001136,2]
[421290699,1777362389251,-580.0,0.0001136,2]
[421290700,1777362389273,-300.0,0.00011999,2]
[421290701,1777362389294,-4681.01,0.00012,2]
[421290702,1777362410351,-152.0,0.00010959,2]
[421290703,1777362410374,-177.33,0.0001107,2]
[421290724,1777362632264,-2352.94404034,0.00011302,2]
[421290725,1777362632273,-224.9963719,0.00011416,2]
[421290726,1777362632283,-270.81280691,0.00011624,2]
[421290727,1777362632292,-584.0,0.00011624,2]
[421290728,1777362632302,-150.0,0.00011769,2]
[421290729,1777362632311,-354.68,0.0001194,2]
[421290730,1777362632321,-300.0,0.00011999,2]
[421290731,1777362632331,-1200.0,0.00011999,2]
[421290733,1777362632340,-7265.13249406,0.00012,2]
[421290751,1777362640812,-4052.64258996,0.00012,2]
[421290844,1777362643520,-5551.52627168,0.00012,2]
[421290846,1777362643533,-4895.9349,0.00012,2]
[421290950,1777362646734,-540.92371165,0.00012,2]
[421290951,1777362646745,-300.0,0.00012,2]
[421290952,1777362646756,-7555.21288691,0.00012,2]
[421290953,1777362647204,-36120.4505039,0.00012,2]
[421290954,1777362649365,-2090.0,0.00012,2]
[421290955,1777362692019,-2090.0,0.0001188,2]
[421290956,1777362692040,-110.0,0.00012,2]
[421290958,1777363280885,-1319.864,0.00011643,2]
[421291127,1777363832586,-951.93741791,0.00011298,2]
[421291129,1777363832596,-211.4100911,0.00011298,2]
[421291212,1777363838730,-367.5899089,0.00011298,2]
[421291213,1777363838740,-150.0,0.00011384,2]
[421291214,1777363838751,-4617.75891598,0.00012,2]
[421291215,1777363838760,-152.0,0.00012022,7]
[421291216,1777363838769,-152.0,0.00012022,7]
[421291217,1777363838778,-300.0,0.00012099,2]
[421291218,1777363838788,-10096.55902059,0.000121,10]
[421291219,1777363838798,-865.0,0.00012222,2]
[421291220,1777363838807,-16.42452294,0.00012222,2]
[421291221,1777363838819,-848.57547706,0.00012222,2]
[421291222,1777363838828,-865.0,0.00012222,2]
[421291223,1777363838838,-865.0,0.00012222,2]
[421291224,1777363838847,-865.0,0.00012222,2]
[421291225,1777363838857,-865.0,0.00012222,2]
[421291226,1777363838866,-865.0,0.00012222,2]
[421291227,1777363838876,-865.0,0.00012222,2]
[421291228,1777363838885,-865.0,0.00012222,2]
[421291229,1777363838894,-865.0,0.00012222,2]
[421291230,1777363838903,-865.0,0.00012222,2]
[421291231,1777363838913,-865.0,0.00012222,2]
[421291232,1777363838923,-865.0,0.00012222,2]
[421291233,1777363838932,-865.0,0.00012222,2]
[421291234,1777363838941,-865.0,0.00012222,2]
[421291235,1777363838950,-865.0,0.00012222,2]
[421291236,1777363838959,-865.0,0.00012222,2]
[421291237,1777363839202,-865.0,0.00012222,2]
[421291238,1777363839212,-865.0,0.00012222,2]
[421291239,1777363839221,-865.0,0.00012222,2]
[421291240,1777363839230,-865.0,0.00012222,2]
[421291241,1777363839240,-865.0,0.00012222,2]
[421291242,1777363839249,-865.0,0.00012222,2]
[421291243,1777363839258,-878.42468638,0.00012222,2]
[421291244,1777363839268,-152.0,0.00012224,7]
[421291245,1777363839276,-152.0,0.00012224,7]
[421291246,1777363839286,-152.0,0.00012224,7]
[421291247,1777363839295,-598.65190193,0.000123,2]
[421291248,1777363839304,-1498.4525174,0.000123,2]
[421291249,1777363839314,-1292.17844886,0.000123,2]
[421291250,1777363839323,-298.77854559,0.000123,2]
[421291251,1777363839333,-152.0,0.0001231,7]
[421291252,1777363839342,-152.0,0.0001231,7]
[421291253,1777363839352,-152.0,0.0001231,7]
[421291254,1777363839360,-152.0,0.0001231,7]
[421291255,1777363839370,-152.0,0.0001231,7]
[421291256,1777363839379,-152.0,0.0001231,7]
[421291257,1777363839388,-152.0,0.0001231,7]
[421291258,1777363839397,-233.43,0.00012328,2]
[421291259,1777363839406,-233.046,0.00012374,2]
[421291260,1777363839416,-151.0,0.000124,2]
[421291261,1777363839425,-152.0,0.00012402,7]
[421291262,1777363839435,-155.0,0.00012474,2]
[421291263,1777363839444,-151.0,0.00012475,2]
[421291264,1777363839454,-152.0,0.00012477,7]
[421291265,1777363839467,-152.0,0.00012477,7]
[421291266,1777363839476,-296.85539146,0.000125,2]
[421291267,1777363839486,-152.0,0.00012502,7]
[421291268,1777363839495,-152.0,0.00012502,7]
[421291269,1777363839504,-237.47,0.0001252,2]
[421291270,1777363839513,-485.44648288,0.00012539,2]
[421291271,1777363839522,-238.25,0.00012553,2]
[421291272,1777363839531,-155.0,0.00012578,2]
[421291273,1777363839541,-241.56,0.00012593,2]
[421291274,1777363839550,-236.81,0.000126,2]
[421291275,1777363839559,-1399.46751286,0.000126,2]
[421291276,1777363839568,-3445.03969995,0.000126,2]
[421291277,1777363839578,-303.50970371,0.000126,2]
[421291278,1777363839587,-614.23499274,0.000126,2]
[421291279,1777363839597,-551.207551,0.000126,2]
[421291280,1777363839606,-161.85537793,0.000126,2]
[421291281,1777363839616,-238.515312,0.000126,2]
[421291282,1777363839625,-152.0,0.00012603,7]
[421291283,1777363839634,-152.0,0.00012603,7]
[421291284,1777363839644,-152.0,0.00012603,7]
[421291285,1777363839653,-152.0,0.00012603,7]
[421291286,1777363839663,-152.0,0.00012603,7]
[421291287,1777363839672,-152.0,0.00012603,7]
[421291288,1777363839682,-152.0,0.00012603,7]
[421291289,1777363839691,-500.0,0.00012625,2]
[421291290,1777363839701,-500.0,0.00012625,2]
[421291291,1777363839711,-28.6305058,0.00012625,2]
[421291303,1777363841049,-234.42,0.00012338,2]
[421291304,1777363841059,-250.76,0.00012456,2]
[421291305,1777363841068,-390.66439004,0.00012625,2]
[421291306,1777363841078,-305.09540366,0.00012625,2]
[421291307,1777363841087,-299.48325401,0.00012625,2]
[421291308,1777363841096,-52.48148056,0.00012625,2]
[421291337,1777363843568,-222.34,0.00012486,2]
[421291339,1777363843578,-218.71,0.00012486,2]
[421291341,1777363843587,-532.34907303,0.00012625,2]
[421291343,1777363843595,-4091.52481975,0.00012626,2]
[421291345,1777363843607,-8806.98300026,0.00012626,2]
[421291354,1777363843675,-427.77401337,0.00012626,2]
[421291361,1777363843730,-1826.03086402,0.00012626,2]
[421291363,1777363843741,-857.52287274,0.00012626,2]
[421291387,1777363847153,-7040.72718768,0.00012626,2]
[421291388,1777363847164,-1298.55723155,0.00012626,2]
[421291389,1777363847175,-82852.07423336,0.00012626,2]
[421291393,1777364313918,150.0,1e-05,2]
[421291394,1777364369949,150.0,1e-05,2]
[421291542,1777365041172,-171.01062976,0.00010416,2]
[421291543,1777365041182,-566.0,0.00010416,2]
[421291544,1777365041193,-150.0,0.00011241,2]
[421291545,1777365041202,-94.07079813,0.00011859,2]
[421291551,1777365043832,-1338.81284784,0.00011859,2]
[421291552,1777365043844,-233.29,0.00011882,2]
[421291553,1777365043855,-2162.30121112,0.00011959,2]
[421291568,1777365047605,-661.14063134,0.00011959,2]
[421291569,1777365047616,-300.0,0.00012,2]
[421291570,1777365047626,-3009.69824219,0.00012059,2]
[421291571,1777365047637,-300.0,0.00012099,2]
[421291572,1777365047647,-356.42254082,0.000121,2]
[421291573,1777365047658,-754.97177867,0.000121,2]
[421291574,1777365047668,-186.437,0.00012129,2]
[421291575,1777365047679,-1868.83937116,0.000122,2]
[421291576,1777365047690,-3463.27479887,0.00012259,2]
[421291577,1777365047700,-209.63827781,0.00012276,2]
[421291578,1777365047711,-35254.86758769,0.00012277,2]
[421291645,1777366232320,-180.90934082,9.801e-05,2]
[421291646,1777366232329,-562.0,0.00010104,2]
[421291647,1777366232339,-150.0,0.00010417,2]
[421291648,1777366232348,-181.66510441,0.00010739,2]
[421291649,1777366232358,-186.437,0.00011737,2]
[421291650,1777366232367,-1200.0,0.00011874,2]
[421291651,1777366232376,-1200.0,0.00011875,2]
[421291652,1777366232385,-300.0,0.00011875,2]
[421291653,1777366232395,-300.0,0.00011875,2]
[421291654,1777366232404,-300.0,0.00011875,2]
[421291655,1777366232413,-500.0,0.00011876,2]
[421291656,1777366232423,-500.0,0.00011876,2]
[421291657,1777366232432,-500.0,0.00011876,2]
[421291658,1777366232441,-500.0,0.00011876,2]
[421291659,1777366232451,-500.0,0.00011876,2]
[421291660,1777366232460,-500.0,0.00011876,2]
[421291661,1777366232469,-500.0,0.00011876,2]
[421291662,1777366232479,-500.0,0.00011876,2]
[421291663,1777366232488,-500.0,0.00011876,2]
[421291664,1777366232497,-500.0,0.00011876,2]
[421291665,1777366232506,-500.0,0.00011876,2]
[421291666,1777366232515,-500.0,0.00011876,2]
[421291667,1777366232525,-500.0,0.00011876,2]
[421291668,1777366232534,-254.95580349,0.00011876,2]
[421291669,1777366232543,-500.0,0.00011876,2]
[421291670,1777366232552,-500.0,0.00011876,2]
[421291671,1777366232562,-500.0,0.00011876,2]
[421291672,1777366232571,-500.0,0.00011876,2]
[421291673,1777366232580,-500.0,0.00011876,2]
[421291674,1777366232589,-500.0,0.00011876,2]
[421291675,1777366232599,-500.0,0.00011876,2]
[421291676,1777366232607,-500.0,0.00011876,2]
[421291677,1777366232617,-269.01524568,0.00011876,2]
[421291678,1777366232626,-500.0,0.00011876,2]
[421291679,1777366232636,-402.65023793,0.00011876,2]
[421291680,1777366232645,-300.96849645,0.00011876,2]
[421291681,1777366232654,-500.0,0.00011876,2]
[421291682,1777366232663,-500.0,0.00011876,2]
[421291683,1777366232672,-500.0,0.00011876,2]
[421291684,1777366232681,-500.0,0.00011876,2]
[421291685,1777366232690,-500.0,0.00011876,2]
[421291686,1777366232699,-536.32699701,0.00011876,2]
[421291687,1777366232709,-500.0,0.00011876,2]
[421291688,1777366232718,-500.0,0.00011876,2]
[421291689,1777366232727,-500.0,0.00011876,2]
[421291690,1777366232736,-500.0,0.00011876,2]
[421291691,1777366232746,-500.0,0.00011876,2]
[421291692,1777366232755,-325.42889791,0.00011876,2]
[421291693,1777366232764,-500.0,0.00011876,2]
[421291694,1777366232773,-500.0,0.00011876,2]
[421291695,1777366232783,-500.0,0.00011876,2]
[421291696,1777366232792,-500.0,0.00011876,2]
[421291697,1777366232801,-1433.12726462,0.00011877,2]
[421291709,1777366238115,-19040.69407076,0.00011877,2]
[421291710,1777366238127,-1600.67691427,0.00011877,2]
[421291711,1777366238138,-41972.01148746,0.00011877,2]
[421291712,1777366238149,-20729.81254179,0.00011877,2]
[421291835,1777366246611,-7134.95262035,0.00011877,2]
[421291836,1777366697360,-1753.34772293,0.00011524,2]
[421291837,1777366697401,-582.0,0.00011524,2]
[421291838,1777366697435,-150.0,0.0001165,2]
[421291839,1777366697462,-300.0,0.00011775,2]
[421291840,1777366697496,-422.44940041,0.00011776,2]
[421291841,1777366697527,-317.24100805,0.00011776,2]
[421291842,1777366697559,-500.0,0.00011776,2]
[421291843,1777366697596,-618.65789713,0.00011776,2]
[421291844,1777366697629,-356.30397148,0.00011776,2]
[421291845,1777366700285,-143.69602852,0.00011776,2]
[421291846,1777366700312,-500.0,0.00011776,2]
[421291847,1777366700339,-500.0,0.00011776,2]
[421291848,1777366700367,-500.0,0.00011776,2]
[421291849,1777366700395,-500.0,0.00011776,2]
[421291850,1777366700628,-500.0,0.00011776,2]
[421291851,1777366700654,-500.0,0.00011776,2]
[421291852,1777366700679,-500.0,0.00011776,2]
[421291853,1777366700703,-477.80022854,0.00011776,2]
[421291854,1777366700729,-500.0,0.00011776,2]
[421291855,1777366700754,-378.50374294,0.00011776,2]
[421291856,1777366702202,-121.49625706,0.00011776,2]
[421291857,1777366702229,-500.0,0.00011776,2]
[421291858,1777366702255,-500.0,0.00011776,2]
[421291860,1777366702281,-500.0,0.00011776,2]
[421291861,1777366702307,-500.0,0.00011776,2]
[421291862,1777366702333,-500.0,0.00011776,2]
[421291863,1777366702360,-200.0,0.00011776,2]
[421291864,1777366702387,-500.0,0.00011776,2]
[421291865,1777366702416,-1678.50374294,0.00011777,2]
[421291868,1777366769132,-269.0,0.00011659,2]
[421291870,1777366953224,-1137.0,9.331e-05,2]
[421291871,1777367216443,-152.0,9.055e-05,2]
[421291872,1777367216466,-547.0,9.055e-05,2]
[421291873,1777367216492,-301.0,9.146e-05,2]
[421291874,1777367217614,-383.0,9.146e-05,2]
[421291875,1777367217637,-150.0,9.285e-05,2]
[421291876,1777367217660,-467.0,9.425e-05,2]
[421291877,1777367218724,-852.864,9.425e-05,2]
[421291971,1777367438259,-1200.0,0.00010298,2]
[421291972,1777367438269,-553.34772293,0.00010299,2]
[421291982,1777367440922,-10.65227707,0.00010299,2]
[421291983,1777367440932,-300.0,0.00010299,2]
[421291984,1777367440941,-300.0,0.00010299,2]
[421291985,1777367440951,-150.0,0.000103,2]
[421291986,1777367440960,-1000.0,0.000103,2]
[421291987,1777367440970,-1000.0,0.000103,2]
[421291988,1777367440980,-1000.0,0.000103,2]
[421291989,1777367440990,-1000.0,0.000103,2]
[421291990,1777367440999,-1000.0,0.000103,2]
[421291991,1777367441009,-985.27371965,0.000103,2]
[421292001,1777367443309,-14.72628035,0.000103,2]
[421292003,1777367443319,-164.05,0.00010867,2]
[421292004,1777367443328,-576.33669966,0.00010888,2]
[421292023,1777368311281,-161.98,0.000103,2]
[421292024,1777368311304,-564.0,0.000103,2]
[421292025,1777368311327,-150.0,0.00010339,2]
[421292026,1777368311350,-455.8709054,0.00010419,2]
[421292027,1777368311375,-152.0,0.00010456,7]
[421292028,1777368311399,-152.0,0.00010456,7]
[421292029,1777368311424,-152.0,0.00010456,7]
[421292030,1777368311449,-152.0,0.00010456,7]
[421292031,1777368311477,-152.0,0.00010456,7]
[421292032,1777368311500,-480.0,0.00010468,2]
[421292033,1777368311525,-152.0,0.00010469,7]
[421292034,1777368311550,-152.0,0.00010469,7]
[421292035,1777368311575,-152.0,0.00010469,7]
[421292036,1777368311604,-152.0,0.00010469,7]
[421292037,1777368311631,-1438.42782639,0.00010888,2]
[421292038,1777368325301,-300.0,0.00011219,2]
[421292039,1777368325327,-81.72126821,0.00011224,7]
[421292040,1777368331525,-70.27873179,0.00011224,7]
[421292041,1777368331549,-152.0,0.00011224,7]
[421292042,1777368331571,-455.9805711,0.00011236,2]
[421292043,1777368331591,-151.0,0.00011244,2]
[421292044,1777368331612,-218.7922007,0.00011244,2]
[421292045,1777368331632,-151.0,0.00011244,2]
[421292046,1777368331653,-218.74,0.00011294,2]
[421292047,1777368331678,-152.0,0.00011579,7]
[421292048,1777368331702,-152.0,0.00011579,7]
[421292049,1777368331726,-152.0,0.00011579,7]
[421292050,1777368331750,-152.0,0.00011579,7]
[421292051,1777368331775,-152.0,0.00011579,7]
[421292052,1777368331800,-152.0,0.00011652,7]
[421292053,1777368331824,-152.0,0.00011652,7]
[421292054,1777368331849,-152.0,0.00011675,7]
[421292055,1777368331874,-152.0,0.00011675,7]
[421292056,1777368331898,-152.0,0.00011779,7]
[421292057,1777368331921,-152.0,0.00011779,7]
[421292058,1777368331944,-152.0,0.00011853,7]
[421292059,1777368331968,-152.0,0.00011853,7]
[421292060,1777368331989,-155.0,0.00011876,2]
[421292061,1777368332013,-1451.20849641,0.00011911,2]
[421292062,1777368334344,-2622.1475099,0.00011911,2]
[421292063,1777368334365,-500.0,0.00011911,2]
[421292064,1777368334387,-500.0,0.00011948,2]
[421292065,1777368334409,-500.0,0.00011948,2]
[421292066,1777368334431,-500.0,0.00011948,2]
[421292067,1777368334452,-377.8524901,0.00011948,2]
[421292068,1777368338331,-152.0,0.00010537,7]
[421292069,1777368338353,-122.1475099,0.00011948,2]
[421292070,1777368338374,-500.0,0.00011948,2]
[421292071,1777368338395,-500.0,0.00011948,2]
[421292072,1777368338416,-500.0,0.00011948,2]
[421292073,1777368338438,-500.0,0.00011948,2]
[421292074,1777368338459,-500.0,0.00011948,2]
[421292075,1777368338480,-500.0,0.00011948,2]
[421292076,1777368338501,-500.0,0.00011948,2]
[421292077,1777368338523,-500.0,0.00011948,2]
[421292078,1777368338545,-500.0,0.00011948,2]
[421292079,1777368338566,-225.8524901,0.00011948,2]
[421292080,1777368343851,-274.1475099,0.00011948,2]
[421292081,1777368343875,-500.0,0.00011948,2]
[421292082,1777368343896,-212.8524901,0.00011948,2]
[421292145,1777368638600,-2490.00394897,0.00011128,2]
[421292148,1777368640783,-2467.45075736,0.00011128,2]
[421292149,1777368641310,-0.39139772,0.00011128,2]
[421292168,1777368647192,-42.15389595,0.00011128,2]
[421292169,1777368647201,-576.0,0.00011128,2]
[421292170,1777368647211,-150.0,0.00011184,2]
[421292171,1777368647220,-551.6080366,0.00011241,2]
[421292172,1777368647229,-300.0,0.00011578,2]
[421292173,1777368647238,-2283.18905667,0.00011579,2]
[421292174,1777368647257,-2652.18542209,0.00011579,2]
[421292175,1777368647266,-49065.37958836,0.00011697,2]
[421292178,1777369286897,-5000.0,0.00010582,2]
[421292179,1777369288601,-3898.48860414,0.00010689,2]
[421292180,1777369288623,-150.0,0.00010797,2]
[421292181,1777369288644,-300.0,0.00010903,2]
[421292182,1777369288666,-651.51139586,0.00010904,2]
[421292183,1777369290126,-548.48860414,0.00010904,2]
[421292184,1777369290149,-300.0,0.00010905,2]
[421292185,1777369290171,-300.0,0.00010905,2]
[421292186,1777369290192,-300.0,0.00010905,2]
[421292187,1777369300292,-455.9805711,0.00011241,2]
[421292188,1777369300315,-578.0,0.00011241,2]
[421292189,1777369300336,-1683.45250869,0.00011662,2]
[421292190,1777369300361,-152.0,0.00011675,7]
[421292191,1777369300386,-152.0,0.00011675,7]
[421292192,1777369300408,-530.07831607,0.00011697,2]
[421292193,1777369307667,-5000.0,0.00011697,2]
[421292194,1777369397609,-585.0,0.00011696,2]
[421292195,1777369397637,-300.0,0.00011696,2]
[421292196,1777369397662,-4115.0,0.00011697,2]
[421292197,1777369398945,-3764.34461297,0.00011697,2]
[421292198,1777369398970,-1235.65538703,0.00011697,2]
[421292199,1777369400539,-413.41979417,0.00011697,2]
[421292200,1777369400567,-186.437,0.00011697,2]
[421292201,1777369400967,-4400.14320583,0.00011799,2]
[421292202,1777369402604,-5000.0,0.00011799,2]
[421292203,1777369508276,-586.0,0.00011798,2]
[421292204,1777369508298,-300.0,0.00011798,2]
[421292205,1777369508322,-4114.0,0.00011799,2]
[421292206,1777369509759,-5000.0,0.00011799,2]
[421292243,1777369833526,-1092.32173588,0.0001168,2]
[421292245,1777369833537,-174.08441994,0.0001168,2]
[421292247,1777369833546,-152.0,0.00011694,7]
[421292249,1777369833555,-187.44790807,0.00011697,2]
[421292352,1777369838616,-500.00000001,0.00011,2]
[421292353,1777369838625,-112.55209193,0.00011697,2]
[421292354,1777369838635,-585.0,0.00011697,2]
[421292355,1777369838644,-500.0,0.00011698,2]
[421292356,1777369838654,-305.61087028,0.00011698,2]
[421292357,1777369838663,-500.0,0.00011698,2]
[421292358,1777369838673,-500.0,0.00011698,2]
[421292359,1777369838682,-500.0,0.00011698,2]
[421292360,1777369838692,-500.0,0.00011698,2]
[421292361,1777369838702,-500.0,0.00011698,2]
[421292362,1777369838711,-500.0,0.00011698,2]
[421292363,1777369838720,-374.46015998,0.00011698,2]
[421292364,1777369838730,-272.79009297,0.00011698,2]
[421292365,1777369838739,-500.0,0.00011698,2]
[421292366,1777369838748,-500.0,0.00011698,2]
[421292367,1777369838757,-500.0,0.00011698,2]
[421292368,1777369838767,-173.16669604,0.00011698,2]
[421292369,1777369838776,-500.0,0.00011698,2]
[421292370,1777369838785,-500.0,0.00011698,2]
[421292371,1777369838795,-500.0,0.00011698,2]
[421292372,1777369838804,-500.0,0.00011698,2]
[421292373,1777369838814,-642.73609098,0.00011698,2]
[421292374,1777369838823,-500.0,0.00011698,2]
[421292375,1777369838832,-500.0,0.00011698,2]
[421292376,1777369838842,-500.0,0.00011698,2]
[421292377,1777369838852,-500.0,0.00011698,2]
[421292378,1777369838861,-500.0,0.00011698,2]
[421292379,1777369838870,-500.0,0.00011698,2]
[421292380,1777369838879,-500.0,0.00011698,2]
[421292381,1777369838888,-500.0,0.00011698,2]
[421292382,1777369838898,-500.0,0.00011698,2]
[421292383,1777369838907,-500.0,0.00011698,2]
[421292384,1777369838916,-500.0,0.00011698,2]
[421292385,1777369838926,-500.0,0.00011698,2]
[421292386,1777369838935,-500.0,0.00011698,2]
[421292387,1777369838945,-500.0,0.00011698,2]
[421292388,1777369838955,-500.0,0.00011698,2]
[421292389,1777369838965,-500.0,0.00011698,2]
[421292390,1777369838975,-500.0,0.00011698,2]
[421292391,1777369838984,-500.0,0.00011698,2]
[421292392,1777369838995,-235.20206153,0.00011698,2]
[421292393,1777369839004,-500.0,0.00011698,2]
[421292394,1777369839015,-500.0,0.00011698,2]
[421292395,1777369839024,-500.0,0.00011698,2]
[421292396,1777369839034,-7965.06585268,0.00011699,2]
[421292397,1777369839046,-28112.96675449,0.00011699,2]
[421292398,1777369839058,-1437.21047514,0.00011699,2]
[421292433,1777369841257,-0.00869946,0.00011699,2]
[421292434,1777369841269,-2082.07231819,0.00011699,2]
[421292435,1777369841280,-5339.53196822,0.00011699,2]
[421292443,1777369843683,-1999.3,0.00011699,2]
[421292455,1777369847383,-27314.69064759,0.00011699,2]
[421292456,1777369847437,-1457.10102313,0.00011699,2]
[421292457,1777369847449,-3833.85,0.00011699,2]
[421292463,1777370449026,3333.86477408,7.6e-05,2]
[421292591,1777371040959,-5000.0,6.942e-05,2]
[421292593,1777371040968,-5000.0,7.012e-05,2]
[421292594,1777371040977,-666.43320506,7.083e-05,2]
[421292595,1777371040986,-300.0,7.154e-05,2]
[421292596,1777371040995,-521.0,7.155e-05,2]
[421292597,1777371041004,-150.0,7.264e-05,2]
[421292598,1777371041013,-500.0,7.599e-05,2]
[421292600,1777371041023,-500.0,7.599e-05,2]
[421292602,1777371041032,-344.098213,7.599e-05,2]
[421292603,1777371041041,-500.0,7.599e-05,2]
[421292604,1777371041050,-500.0,7.599e-05,2]
[421292605,1777371041059,-589.03686084,7.599e-05,2]
[421292606,1777371041069,-56666.13522592,7.6e-05,2]
[421292607,1777371041078,-420.0,7.869e-05,2]
[421292608,1777371041087,-587.0,8.656e-05,2]
[421292609,1777371041097,-177.0,9.264e-05,2]
[421292610,1777371041106,-6276.84867426,9.425e-05,2]
[421292611,1777371041118,-5811.21938397,9.425e-05,2]
[421292612,1777371041127,-823.0,9.522e-05,2]
[421292613,1777371041136,-100.52548331,0.00010474,2]
[421292614,1777371041147,-1051.47451669,0.00010474,2]
[421292615,1777371041156,-3730.12357229,0.000106,2]
[421292616,1777371041166,-1959.04684275,0.00011051,2]
[421292617,1777371041175,-3963.92283298,0.00011251,2]
[421292618,1777371041185,-204.0,0.00011264,2]
[421292620,1777371041194,-196.4268325,0.00011322,2]
[421292621,1777371041203,-4278.99108775,0.00011351,2]
[421292622,1777371041212,-1842.9631204,0.00011451,2]
[421292623,1777371041235,-2751.09622224,0.00011451,2]
[421292624,1777371041246,-152.0,0.00011505,7]
[421292625,1777371041255,-152.0,0.00011505,7]
[421292626,1777371041264,-1613.0,0.00011522,2]
[421292627,1777371041274,-500.0,0.0001155,2]
[421292628,1777371041283,-340.78425896,0.0001155,2]
[421292629,1777371041293,-500.0,0.0001155,2]
[421292630,1777371041302,-500.0,0.0001155,2]
[421292631,1777371041312,-500.0,0.0001155,2]
[421292632,1777371041322,-262.12211198,0.0001155,2]
[421292633,1777371041332,-500.0,0.0001155,2]
[421292634,1777371041341,-500.0,0.0001155,2]
[421292635,1777371041351,-500.0,0.0001155,2]
[421292636,1777371041361,-4909.12759754,0.00011551,2]
[421292637,1777371041370,-162.380719,0.00011551,2]
[421292638,1777371041380,-445.202766,0.00011551,2]
[421292639,1777371041390,-537.6845,0.00011551,2]
[421292640,1777371041399,-151.0,0.00011551,2]
[421292641,1777371041409,-537.6845,0.00011551,2]
[421292642,1777371041418,-2150.738,0.00011551,2]
[421292643,1777371041428,-800.0,0.000116,2]
[421292644,1777371041437,-800.0,0.000116,3]
[421292645,1777371041447,-557.5788265,0.00011606,2]
[421292646,1777371041456,-5224.19585244,0.00011651,2]